Cogmind - Beta 11.1 @@@ ROGUE MODE // 2022.06.05 @ 09:45:55 Player: ChromeKnight Result: Destroyed by as-30828 with Assembled Rifle Performance ------------- Evolutions (0) 0 Regions Visited (2) 400 Robots Destroyed (23) 115 Value Destroyed (344) 344 Prototype IDs (0) 0 Alien Tech Used (0) 0 Bonus (0) 0 TOTAL SCORE: 859 Bonus ------- None Cogmind --------- Core Integrity 0/250 Matter 265/300 Energy 74/160 System Corruption 16% Temperature Cool (0) Movement Walking (190) Ox1 Location -10/Mines Parts ------- > --- POWER (1) -------- Light Nuclear Core > --- PROPULSION (2) --- Aluminum Leg Aluminum Leg > --- UTILITY (2) ------ Large Storage Unit > --- WEAPON (2) ------- Mining Claw > --- INVENTORY (15) --- Aluminum Leg Flight Unit Flight Unit Flight Unit Flight Unit Flight Unit Medium Storage Unit Medium Matter Pod (100) Propulsion Shielding Peak State ------------ > --- POWER ------------ Light Ion Engine > --- PROPULSION ------- Light Treads Light Treads > --- UTILITY ---------- Improved Heat Sink Small Storage Unit > --- WEAPON ----------- Small Laser Particle Gun > --- INVENTORY -------- Hover Unit Propulsion Shielding Medium Laser Small Laser Grenade Launcher Mining Claw Mining Claw Mining Claw [Rating: 10] Favorites ----------- Power Light Ion Engine Engine Light Ion Engine Power Core Light Nuclear Core Propulsion Light Treads Treads Light Treads Leg Aluminum Leg Utility Improved Heat Sink Device Improved Heat Sink Storage Large Storage Unit Weapon Small Laser Energy Gun Small Laser Ballistic Gun Assault Rifle Launcher Grenade Launcher Slashing Weapon Mining Claw Build | -11 -10 -10 ------- Run | Scr Mat Min Slots Evolved . | . . . Power . | . . . Propulsion . | . . . Utility . | . . . Weapon . | . . . Parts Attached 28 | 6 15 7 Power 5 | 1 3 1 Engine 4 | 1 3 . Core 1 | . . 1 Reactor . | . . . Propulsion 7 | 2 2 3 Treads 5 | 2 2 1 Leg 2 | . . 2 Wheel . | . . . Hover . | . . . Flight . | . . . Utility 4 | 2 2 . Device 2 | 1 1 . Storage 2 | 1 1 . Processor . | . . . Hackware . | . . . Protection . | . . . Artifact . | . . . Weapon 12 | 1 8 3 Energy Gun 6 | . 6 . Energy Cannon . | . . . Ballistic Gun 2 | 1 1 . Ballistic Cannon . | . . . Launcher 1 | . 1 . Special Weapon . | . . . Impact Weapon . | . . . Slashing Weapon 3 | . . 3 Piercing Weapon . | . . . Special Melee Weapon . | . . . Unidentified Prototypes . | . . . Parts Lost 11 | . 5 6 Power 2 | . 1 1 Propulsion 3 | . 1 2 Utility 2 | . 1 1 Weapon 4 | . 2 2 Highest Loss Streak 5 | . 2 5 To Critical Strikes . | . . . Average Slot Usage (%) 93 | . 95 81 Engine 12 | . 13 2 Treads 26 | . 26 23 Device 13 | . 13 12 Storage 14 | . 14 14 Energy Gun 18 | . 19 16 Ballistic Gun 4 | . 5 . Launcher 1 | . 1 . Slashing Weapon 1 | . . 9 Naked Turns . | . . . Heaviest Build 29 | 11 29 29 Greatest Support 40 | 40 40 40 Greatest Overweight (x) 1 | . 1 . Average Overweight (x) . | . . . Largest Inventory Capacity 15 | 8 15 15 Average Capacity 12 | 6 12 15 Most Carried 15 | 3 15 15 Average Carried 10 | 1 10 13 Final Capacity 15 | 8 15 15 Final Carried 15 | 2 15 9 Class Distribution -------------------- 51% | Mutant 48% | Scavenger-Mutant Dominant Class ---------------- Scavenger-Mutant | -10/Materials Mutant | -10/Mines Resources | -11 -10 -10 ----------- Run | Scr Mat Min Matter Collected 705 | 272 334 99 Remotely . | . . . Salvage Created 620 | 25 435 160 Parts 45 | 3 38 4 Haulers Intercepted 2 | . 2 . Recyclers Shooed 2 | . 2 . Parts Field Recycled . | . . . Retrieved Matter . | . . . Parts Self-Destructed . | . . . Prevented . | . . . Kills | -11 -10 -10 ------- Run | Scr Mat Min Combat Hostiles Destroyed 15 | . 9 6 Melee 4 | . . 4 Guns 8 | . 7 1 AOE 2 | . 2 . Classes Destroyed 9 | 1 7 1 Worker 3 | . 2 1 Builder 2 | . 2 . Tunneler 1 | 1 . . Hauler 2 | . 2 . Operator 1 | . 1 . Watcher 3 | . 3 . Swarmer 6 | . 6 . Grunt 5 | . 3 2 Assembled 4 | . . 4 Best Kill Streak 3 | 1 3 2 Combat Bots Only 3 | . 3 2 Max Kills in Single Turn 2 | 1 2 1 Gunslinging . | . . . Exploded 1 | . 1 . Melee 1 | . . 1 Uniques/NPCs Destroyed . | . . . Combat | -11 -10 -10 -------- Run | Scr Mat Min Damage Taken 1485 | . 761 724 Core 256 | . 112 144 Absorbed by Shields . | . . . Core Remaining (%) 100 | 100 . . Volleys Fired 74 | 4 56 14 Largest 2 | 1 2 2 Hottest 90 | 20 90 90 Shots Fired 130 | 4 98 28 Gun 125 | 4 93 28 Cannon . | . . . Launcher 5 | . 5 . Special . | . . . Kinetic 55 | 4 51 . Thermal 70 | . 42 28 Explosive 5 | . 5 . Electromagnetic . | . . . Robot Hit Streak 12 | 1 8 12 Robot Miss Streak 4 | 1 4 2 Penetration Max . | . . . Secondary Targets 1 | . . 1 Max Gunslinging Chain 1 | . . 1 Shots Hit Robots 97 | 2 58 37 Core Hits 38 | 1 28 9 Critical Kills . | . . . Critical Parts Destroyed . | . . . Critical Strikes . | . . . Melee Attacks 29 | . . 29 Impact . | . . . Slashing 29 | . . 29 Piercing . | . . . Sneak Attacks . | . . . Combat Hostiles . | . . . Follow-up Attacks 4 | . . 4 Damage Inflicted 1788 | 21 1032 735 Guns 991 | 21 705 265 Cannons . | . . . Explosions 327 | . 327 . Melee 470 | . . 470 Ramming . | . . . Kinetic 467 | 21 446 . Thermal 524 | . 259 265 Explosive 327 | . 327 . Electromagnetic . | . . . Impact . | . . . Slashing 470 | . . 470 Piercing . | . . . Highest Corruption 16 | . . 16 Average Corruption 13 | . . 13 Corruption Purged . | . . . Corruption Blocked . | . . . Effects 1 | . . 1 Data Loss (minor) 1 | . . 1 Overload Shots . | . . . Overflow Damage 17 | . . 17 Projectiles . | . . . Explosions . | . . . Melee 17 | . . 17 Knockbacks . | . . . Impact . | . . . Kinetic . | . . . Secondary . | . . . Self-Inflicted Damage 8 | . 8 . Shots 1 | . 1 . Rammed . | . . . Targets Rammed . | . . . Kicked . | . . . Crushed . | . . . Highest Temperature 25 | . 8 25 Average Temperature 10 | . 2 14 Received Heat Transfer 434 | . 258 176 Siege Activations . | . . . Robots Corrupted . | . . . Combat Hostiles . | . . . Parts Fried . | . . . Impact Corruptions . | . . . Robots Melted 1 | . . 1 Combat Hostiles 1 | . . 1 Parts Melted 3 | . 1 2 Heat Transferred 1377 | . 682 695 Parts Sabotaged . | . . . Parts Stolen . | . . . Parts Stripped . | . . . Power Chain Reactions . | . . . Missiles Intercepted . | . . . Alert | -11 -10 -10 ------- Run | Scr Mat Min Peak Influence 224 | 5 224 75 Initial 30 | . 3 30 Average 58 | 1 62 58 Maximum Alert Level 1 | . 1 . Low Security (%) 96 | 100 95 100 Level 1 3 | . 4 . Level 2 . | . . . Level 3 . | . . . Level 4 . | . . . Level 5 . | . . . High Security . | . . . Max Security . | . . . Squads Dispatched . | . . . Investigation . | . . . Extermination . | . . . Reinforcement . | . . . Assault . | . . . Garrison . | . . . Intercept . | . . . Searches Triggered . | . . . Construction Impeded . | . . . Haulers Reinforced . | . . . Active Scanning Responses . | . . . Cargo Convoy Interrupts . | . . . Stealth | -11 -10 -10 --------- Run | Scr Mat Min Distress Signals 4 | . 4 . Communications Jammed . | . . . Distress Signals . | . . . Times Spotted 31 | . 18 13 Peak Tracking Total 17 | . 5 17 Tactical Retreats 2 | . . 2 Traps | -11 -10 -10 ------- Run | Scr Mat Min Traps Triggered . | . . . Indirectly . | . . . Trap Hack Attempts . | . . . Triggered . | . . . Disarmed . | . . . Reprogrammed . | . . . Reused . | . . . Traps Extracted . | . . . Installed . | . . . Triggered . | . . . Machines | -11 -10 -10 ---------- Run | Scr Mat Min Machines Disabled . | . . . Max in Single Turn . | . . . Machines Sabotaged . | . . . Garrisons Compromised . | . . . Overloaded Fab Kills . | . . . Hacking | -11 -10 -10 --------- Run | Scr Mat Min Machines Accessed 3 | . 3 . Terminals 3 | . 3 . Fabricators . | . . . Repair Stations . | . . . Recycling Units . | . . . Scanalyzers . | . . . Garrison Access . | . . . Total Hacks 9 | . 9 . Successful 6 | . 6 . Failed 3 | . 3 . Catastrophic . | . . . Database Lockouts . | . . . Manual 9 | . 9 . Terminals 9 | . 9 . Fabricators . | . . . Repair Stations . | . . . Recycling Units . | . . . Scanalyzers . | . . . Garrison Access . | . . . Terminal Hacks . | . . . Fabricator Hacks . | . . . Repair Station Hacks . | . . . Recycling Unit Hacks . | . . . Scanalyzer . | . . . Garrison Access Hacks . | . . . Unauthorized Hacks 6 | . 6 . Terminals 6 | . 6 . Track 2 | . 2 . Botnet 3 | . 3 . Operators 1 | . 1 . Fabricators . | . . . Repair Stations . | . . . Recycling Units . | . . . Scanalyzers . | . . . Garrison Access . | . . . Data Cores Recovered 1 | . 1 . Used 1 | . 1 . Hacking Detections 1 | . 1 . Full Trace Events . | . . . Feedback Events . | . . . Feedback Blocked . | . . . Robot Schematics Acquired . | . . . Robots Built . | . . . Authchips . | . . . Time . | . . . Total Robot Build Rating . | . . . Part Schematics Acquired . | . . . Parts Built . | . . . Authchips . | . . . Time . | . . . Total Part Build Rating . | . . . Parts Repaired . | . . . Time . | . . . Parts Recycled . | . . . Recycled Matter . | . . . Retrieved Matter . | . . . Retrieved Components . | . . . Parts Scanalyzed . | . . . Part Schematics Acquired . | . . . Parts Damaged . | . . . Bothacking | -11 -10 -10 ------------ Run | Scr Mat Min Used RIF Installer . | . . . Robots Hacked . | . . . Non-combat . | . . . Combat . | . . . Robot Hacks Applied . | . . . Relay Couplers Released . | . . . Fabnet Peak Effective % . | . . . Robots Rewired . | . . . Allies Hacked . | . . . Hacks Repelled . | . . . Allies | -11 -10 -10 -------- Run | Scr Mat Min Total Allies . | . . . Largest Group . | . . . Highest-Rated Group . | . . . Highest-Rated Ally . | . . . Total Orders . | . . . Ally Attacks . | . . . Total Damage . | . . . Kills . | . . . Allies Corrupted . | . . . Allies Melted . | . . . Intel | -11 -10 -10 ------- Run | Scr Mat Min Robot Analysis Total . | . . . Derelict Logs Recovered 1 | . . 1 Drone Launches . | . . . Drone Recoveries . | . . . Exploration | -11 -10 -10 ------------- Run | Scr Mat Min Turns Passed 1541 | 98 1250 193 Spaces Moved 650 | 51 558 41 Core 2 | 2 . . Treads 648 | 49 558 41 Legs . | . . . Wheels . | . . . Hover . | . . . Flight . | . . . Fastest Speed 50 | 50 160 160 Average Speed 164 | 155 165 160 Slowest Speed 240 | 160 240 160 Overloaded Moves . | . . . Propulsion Burnouts . | . . . Robots Hopped . | . . . Cave-ins Triggered . | . . . Exploration Rate (%) 31 | 4 78 11 Regions Visited 2 Branch Regions 1 Pre-discovered Areas . | . . . Known Exits Taken . | . . . Unknown Exits Taken 2 | 1 1 . Scrap Searched . | . . . Spaces Dug . | . . . Terrain Destroyed 33 | . 33 . Melee . | . . . Projectile . | . . . AOE 33 | . 33 . Terrain Rammed . | . . . Walls Destroyed . | . . . Machines Disabled . | . . . Actions | -11 -10 -10 --------- Run | Scr Mat Min Total 942 | 63 788 91 Wait 124 | . 124 . Move 648 | 50 557 41 Hop . | . . . Pick Up 26 | 3 22 1 Fast Attach 12 | 5 7 . Attach 9 | 1 2 6 Detach . | . . . Swap 7 | . 6 1 Drop 17 | . 14 3 Fire 74 | 4 56 14 Melee 25 | . . 25 Ram . | . . . Kick . | . . . Crush . | . . . Escape Stasis . | . . . Rewire . | . . . Trap . | . . . Miscellaneous . | . . . Route ------- -11/Scrapyard -10/Materials (discovered 3 exits: [*Mat x2] / [*Min]) -10/Mines History --------- Turn | Location | Event 47 | -11/Scrapyard | Discovered new exit (range 12) 99 | -11/Scrapyard | Entered Materials 310 | -10/Materials | Build established: Mutant 458 | -10/Materials | Discovered new exit (range 15) 1056 | -10/Materials | Discovered new exit (range 16) 1242 | -10/Materials | Discovered new exit (range 12) 1247 | -10/Materials | Build established: Scavenger-Mutant 1349 | -10/Materials | Entered Mines 1362 | -10/Mines | Core integrity fell below 50% 1422 | -10/Mines | Learned Materials terminal intel 1455 | -10/Mines | Assembled infested the area 1520 | -10/Mines | System corruption reached 10% 1528 | -10/Mines | Core integrity fell below 20% 1542 | -10/Mines | Destroyed by as-30828 with Assembled Rifle Last Messages --------------- 01461_ Dropped Med. Laser. 01463_ as-97409 destroyed. 01469_ Destroyed Asb. F-torch. 01472_ Mining Claw follow-up attack on as-99538. 01497_ as-99538 destroyed. 01500_ Mining Claw follow-up attack on as-89100. 01508_ Lgt. Treads destroyed. 01513_ Destroyed Asb. Heavy Rifle. 01516_ Mining Claw follow-up attack on as-48128. 01516_ Mining Claw destroyed. 01516_ System corrupted by crushing effect (+5). 01519_ Mining Claw destroyed. 01519_ System corrupted by crushing effect (+5). 01522_ Imp. Heat Sink destroyed. 01522_ System corrupted by crushing effect (+2). 01525_ Lgt. Treads destroyed. 01525_ System corrupted by crushing effect (+4). 01526_ as-48128 destroyed. 01529_ as-11904 destroyed. 01533_ System corrupted: Component data lost. Map ----- +----------------------------------------------------+ | ??????????????????????????????????????????? | | ??????????????????????????????????????????? | | ??????????????????????????????????????????? | | ??????????????????????????????????????????? | | ?#########????????????????????????????????? | | ?# #????????????????????????????????? | | ?# #????????????????????????????????? | | ?# #????????????????????????????????? | | ?# #????????????????????????????????? | | ?# #????????????????????????????????? | | ?# #????????????????????????????????? | | ?# #????????????????????????????????? | | ?# #????????????????????????????????? | | ?# #????????????????????????????????? | | ?# """" #????????????????????????????????? | | ?# """" #????????????????????????????????? | | ?# """ #????????????????????????????????? | | ?# % #????????????????????????????????? | | ?# == #??????#########?????????????????? | | ?### #####??????# #?????????????????? | | ???#=#??????????# #?????????????????? | | ???#=############ #?????????????????? | | ???# """ #?????????????????? | | ???############## """ #?????????????????? | | ????????????????# [""" #?????????????????? | | ????????????????# @%% #?????????????????? | | ????????????????###a#####?????????????????? | | ??????????????????#%#?????????????????????? | | ??????????????????# #?????????????????????? | | ??????????????????# #?????????????????????? | | ??????????????????# #?????????????????????? | | ??????????????????# #?????????????????????? | | ??????????????????# #?????????????????????? | | ??????????????????# #?????????????????????? | | ??????????????????# #?????????????????????? | | ???????????????????$??????????????????????? | | ??????????????????? ??????????????????????? | | ??????????????????? ??????????????????????? | | ??????????????????? ??????????????????????? | | ??????????????????? ??????????????????????? | | ??????????????????? ??????????????????????? | | ??????????????????? ??????????????????????? | | ??????????????????????????????????????????? | | ??????????????????????????????????????????? | | ??????????????????????????????????????????? | | ??????????????????????????????????????????? | | ??????????????????????????????????????????? | | ??????????????????????????????????????????? | | ??????????????????????????????????????????? | | ??????????????????????????????????????????? | +----------------------------------------------------+ Best States ------------- Heat Dissipation 39 Energy Generation 10 Energy Capacity 250 Matter Stores 300 Matter Capacity 300 Sight Range 16 Terrain Scan Density 10 Evasion (%) 40 Recoil Reduction 2 Item Schematics ----------------- None Robot Schematics ------------------ None Fabricated ------------ Nothing Alien Tech Used ----------------- None Achievements -------------- None Challenges ------------ None Game ------ Seed UtilitySubatomicInjector Manual? 0 Play Time 00:10:47 Cumulative 304.0 hours Start 2022.06.05 @ 09:36:38 End 2022.06.05 @ 09:45:55 Sessions 1 Manual Loads 0 Difficulty Rogue Special Mode None Game No. 547 Rogue 392 Adventurer 148 Explorer 7 Win Type - Total 10 Types 8/0/1/1/0/0/0/0/0 Lore% 73 Gallery% 86 Achievement% 66 Wizard Run 0 Options --------- ASCII 0 Keyboard 0 Movement Numpad Keybinds 0 Fullscreen 1 Font 18/SmallcapsGlow Map View 76x50 Tactical HUD 1 Map Filters NONE Filters NONE Steam 1 RUN: d3051f75-6166-4065-9b15-6325b99ce388